fUST/lending_fUST_20240731
["ID","MTS","AMOUNT","RATE_DAILY","PERIOD"]
[333743974,1722436264958,-606.52,0.00015342,2]
[333743975,1722436264967,-1701.64,0.00015342,2]
[333743976,1722436264976,-3426.69,0.00015342,2]
[333743977,1722436264986,-522.96,0.00015342,2]
[333743978,1722436264996,-500.0,0.00015342,2]
[333743979,1722436265008,-1207.01,0.00015342,2]
[333743980,1722436265018,-900.84,0.00015342,2]
[333743981,1722436265027,-500.0,0.00015342,2]
[333743982,1722436265037,-500.0,0.00015342,2]
[333743983,1722436265046,-400.0,0.00015435,2]
[333743984,1722436265056,-1000.0,0.000155,2]
[333743985,1722436265065,-500.0,0.00015616,2]
[333743986,1722436265075,-500.0,0.00015616,2]
[333743987,1722436265085,-500.0,0.00015616,2]
[333743988,1722436265094,-1203.12,0.00015616,2]
[333743989,1722436265103,-663.55,0.00015616,2]
[333743990,1722436265113,-673.52,0.00015616,2]
[333743991,1722436265123,-593.98,0.00015616,2]
[333743992,1722436265133,-500.0,0.00015616,2]
[333743993,1722436265142,-941.76,0.00015616,2]
[333743994,1722436265151,-500.0,0.00015616,2]
[333743995,1722436265161,-500.0,0.00015616,2]
[333743996,1722436265171,-804.7,0.00015616,2]
[333743997,1722436265181,-607.37,0.00015616,2]
[333743998,1722436265190,-948.79,0.00015616,2]
[333743999,1722436265200,-976.01,0.00015616,2]
[333744000,1722436265210,-562.63,0.00015616,2]
[333744001,1722436265220,-500.0,0.00015616,2]
[333744002,1722436265231,-500.0,0.00015616,2]
[333744003,1722436265241,-1571.13,0.00015616,2]
[333744004,1722436265251,-500.0,0.00015616,2]
[333744005,1722436265267,-500.0,0.00015616,2]
[333744006,1722436265279,-1328.76,0.00015616,2]
[333744007,1722436265290,-500.0,0.00015616,2]
[333744008,1722436265304,-639.28,0.00015616,2]
[333744009,1722436265314,-500.0,0.00015616,2]
[333744010,1722436265326,-685.75,0.00015616,2]
[333744011,1722436265336,-941.24,0.00015616,2]
[333744012,1722436265346,-1053.96,0.00015616,2]
[333744013,1722436265355,-1605.03,0.00015616,2]
[333744014,1722436265364,-500.0,0.00015616,2]
[333744015,1722436265374,-500.0,0.00015616,2]
[333744016,1722436265384,-784.05,0.00015616,2]
[333744017,1722436265394,-500.0,0.00015616,2]
[333744018,1722436265404,-922.81,0.00015616,2]
[333744019,1722436265414,-848.32,0.00015616,2]
[333744020,1722436265423,-507.82,0.00015616,2]
[333744021,1722436265434,-500.0,0.00015616,2]
[333744022,1722436265444,-500.0,0.00015616,2]
[333744023,1722436265454,-2262.96,0.00015616,2]
[333744024,1722436265464,-1114.64,0.00015616,2]
[333744025,1722436265474,-694.84,0.00015616,2]
[333744026,1722436265484,-500.0,0.00015616,2]
[333744027,1722436265493,-500.0,0.00015616,2]
[333744028,1722436265503,-500.0,0.00015616,2]
[333744029,1722436265515,-500.0,0.00015616,2]
[333744030,1722436265524,-500.0,0.00015616,2]
[333744031,1722436265534,-2141.31,0.00015616,2]
[333744032,1722436265543,-611.28,0.00015616,2]
[333744033,1722436265552,-1447.41,0.00015616,2]
[333744034,1722436265562,-500.0,0.00015616,2]
[333744035,1722436265571,-500.0,0.00015616,2]
[333744036,1722436265581,-618.14,0.00015616,2]
[333744037,1722436265591,-500.0,0.00015616,2]
[333744038,1722436265601,-500.0,0.00015616,2]
[333744039,1722436265611,-1435.27,0.00015616,2]
[333744040,1722436265621,-803.86,0.00015616,2]
[333744041,1722436265631,-500.0,0.00015616,2]
[333744042,1722436265641,-11813.21,0.00015616,2]
[333744043,1722436265651,-1061.19,0.00015616,2]
[333744044,1722436265660,-500.0,0.00015616,2]
[333744045,1722436265670,-846.32,0.00015616,2]
[333744046,1722436265680,-1329.77,0.00015616,2]
[333744047,1722436265689,-282.2763552,0.00015616,2]
[333744048,1722436265699,-500.0,0.00015616,2]
[333744049,1722436265709,-1959.37,0.00015616,2]
[333744050,1722436265718,-1096.77,0.00015616,2]
[333744051,1722436265727,-2234.55,0.00015616,2]
[333744052,1722436265738,-500.0,0.00015616,2]
[333744053,1722436265748,-781.62,0.00015616,2]
[333744054,1722436265762,-1859.11,0.00015616,2]
[333744055,1722436265771,-1887.88,0.00015616,2]
[333744056,1722436265783,-546.72,0.00015616,2]
[333744057,1722436265793,-500.0,0.00015616,2]
[333744058,1722436265803,-500.0,0.00015616,2]
[333744059,1722436265812,-1037.88,0.00015616,2]
[333744060,1722436265822,-6350.45,0.00015616,2]
[333744061,1722436265831,-500.0,0.00015616,2]
[333744062,1722436265841,-613.8603113,0.00015616,2]
[333744063,1722436265851,-2915.69,0.00015616,2]
[333744064,1722436265862,-1339.68,0.00015616,2]
[333744065,1722436265874,-3777.9,0.00015616,2]
[333744066,1722436265884,-599.7,0.00015616,2]
[333744067,1722436265894,-1280.32,0.00015616,2]
[333744068,1722436265904,-1357.06,0.00015616,2]
[333744069,1722436265914,-708.71,0.00015616,2]
[333744070,1722436265923,-737.52,0.00015616,2]
[333744071,1722436265932,-1109.13,0.00015616,2]
[333744072,1722436265943,-1695.04,0.00015616,2]
[333744073,1722436265954,-1515.2,0.00015616,2]
[333744074,1722436265964,-557.54,0.00015616,2]
[333744075,1722436265973,-848.0,0.00015616,2]
[333744076,1722436265983,-798.49,0.00015616,2]
[333744077,1722436265993,-500.0,0.00015616,2]
[333744078,1722436266002,-1679.98,0.00015616,2]
[333744079,1722436266014,-633.19,0.00015616,2]
[333744080,1722436266024,-1590.02,0.00015616,2]
[333744081,1722436266033,-500.0,0.00015616,2]
[333744082,1722436266042,-610.27,0.00015616,2]
[333744083,1722436266052,-961.5,0.00015616,2]
[333744084,1722436266062,-550.74,0.00015616,2]
[333744085,1722436266071,-1625.27,0.00015616,2]
[333744086,1722436266081,-621.9,0.00015616,2]
[333744087,1722436266090,-2044.97,0.00015616,2]
[333744088,1722436266099,-950.0,0.00015616,2]
[333744089,1722436266109,-704.75,0.00015616,2]
[333744090,1722436266119,-944.75,0.00015616,2]
[333744091,1722436266129,-534.79,0.00015616,2]
[333744092,1722436266139,-1474.64,0.00015616,2]
[333744093,1722436266149,-500.0,0.00015616,2]
[333744094,1722436266158,-3337.57,0.00015616,2]
[333744095,1722436266167,-500.0,0.00015616,2]
[333744096,1722436266177,-1441.6,0.00015616,2]
[333744097,1722436266187,-613.94,0.00015616,2]
[333744098,1722436266196,-3785.8,0.00015616,2]
[333744099,1722436266206,-2217.81,0.00015616,2]
[333744100,1722436266216,-1805.67,0.00015616,2]
[333744101,1722436266226,-692.38,0.00015616,2]
[333744102,1722436266236,-8958.39,0.00015616,2]
[333744103,1722436266245,-1032.38,0.00015616,2]
[333744104,1722436266255,-500.0,0.00015616,2]
[333744105,1722436266266,-586.45,0.00015616,2]
[333744106,1722436266276,-1316.61,0.00015616,2]
[333744107,1722436266286,-670.42,0.00015616,2]
[333744108,1722436266295,-9981.93,0.00015616,2]
[333744109,1722436266305,-606.52,0.00015616,2]
[333744110,1722436266315,-1701.64,0.00015616,2]
[333744111,1722436266324,-3426.69,0.00015616,2]
[333744112,1722436266334,-522.96,0.00015616,2]
[333744113,1722436266344,-500.0,0.00015616,2]
[333744114,1722436266354,-1207.01,0.00015616,2]
[333744115,1722436266363,-500.0,0.00015616,2]
[333744116,1722436266373,-156.0,0.0001563,2]
[333744117,1722436266383,-1708.57156863,0.00015707,2]
[333744118,1722436266392,-18191.86699406,0.00015707,2]
[333744119,1722436266402,-1162.16976726,0.00015708,2]
[333744120,1722436266411,-4180.04028286,0.00015708,2]
[333744121,1722436266421,-1990.82429951,0.00015708,2]
[333744122,1722436266431,-6999.1698205,0.00015708,2]
[333744123,1722436266440,-9639.05525324,0.00015708,2]
[333744124,1722436266450,-4018.01957075,0.00015708,2]
[333744125,1722436266460,-2138.42102512,0.00015708,2]
[333744126,1722436266471,-2277.39949897,0.00015708,3]
[333744127,1722436266481,-1382.47255271,0.00015708,2]
[333744128,1722436266492,-1500.0,0.00015708,2]
[333744129,1722436266502,-2123.86369588,0.00015708,2]
[333744130,1722436266514,-4336.40755636,0.00015708,2]
[333744131,1722436266525,-1762.71873065,0.00015708,2]
[333744132,1722436266536,-1172.04350055,0.00015708,2]
[333744133,1722436266546,-492.27173157,0.00015708,2]
[333744134,1722436266556,-1437.78611875,0.00015708,2]
[333744135,1722436266567,-5924.91178609,0.00015708,2]
[333744136,1722436266578,-97504.2184315,0.00015708,2]
[333744137,1722436266589,-5676.17777187,0.00015708,7]
[333744138,1722436266599,-459.50260569,0.00015708,4]
[333744139,1722436266609,-846.43871726,0.00015708,2]
[333744140,1722436266619,-35001.9180202,0.00015709,2]
[333744141,1722436266629,-47804.60735635,0.00015709,2]
[333744142,1722436266639,-187.88389771,0.00015751,2]
[333744143,1722436266649,-500.0,0.0001589,2]
[333744144,1722436266659,-500.0,0.0001589,2]
[333744145,1722436266669,-500.0,0.0001589,2]
[333744146,1722436266679,-1203.12,0.0001589,2]
[333744147,1722436266688,-663.55,0.0001589,2]
[333744148,1722436266698,-673.52,0.0001589,2]
[333744149,1722436266708,-593.98,0.0001589,2]
[333744150,1722436266717,-500.0,0.0001589,2]
[333744151,1722436266727,-941.76,0.0001589,2]
[333744152,1722436266737,-500.0,0.0001589,2]
[333744153,1722436266747,-500.0,0.0001589,2]
[333744154,1722436266756,-804.7,0.0001589,2]
[333744155,1722436266768,-607.37,0.0001589,2]
[333744156,1722436266777,-948.79,0.0001589,2]
[333744157,1722436266787,-976.01,0.0001589,2]
[333744158,1722436266797,-562.63,0.0001589,2]
[333744159,1722436266806,-500.0,0.0001589,2]
[333744160,1722436266816,-500.0,0.0001589,2]
[333744161,1722436266826,-1571.13,0.0001589,2]
[333744162,1722436266835,-500.0,0.0001589,2]
[333744163,1722436266845,-500.0,0.0001589,2]
[333744164,1722436266854,-1328.76,0.0001589,2]
[333744165,1722436266864,-500.0,0.0001589,2]
[333744166,1722436266875,-639.28,0.0001589,2]
[333744167,1722436266885,-500.0,0.0001589,2]
[333744168,1722436266894,-685.75,0.0001589,2]
[333744169,1722436266904,-941.24,0.0001589,2]
[333744170,1722436266913,-1053.96,0.0001589,2]
[333744171,1722436266923,-1605.03,0.0001589,2]
[333744172,1722436266933,-500.0,0.0001589,2]
[333744173,1722436266942,-500.0,0.0001589,2]
[333744174,1722436266951,-784.05,0.0001589,2]
[333744175,1722436266961,-500.0,0.0001589,2]
[333744176,1722436266970,-922.81,0.0001589,2]
[333744177,1722436266980,-848.32,0.0001589,2]
[333744178,1722436266990,-507.82,0.0001589,2]
[333744179,1722436266999,-500.0,0.0001589,2]
[333744180,1722436267010,-500.0,0.0001589,2]
[333744181,1722436267019,-2262.96,0.0001589,2]
[333744182,1722436267029,-1114.64,0.0001589,2]
[333744183,1722436267040,-694.84,0.0001589,2]
[333744184,1722436267049,-500.0,0.0001589,2]
[333744185,1722436267059,-500.0,0.0001589,2]
[333744186,1722436267069,-500.0,0.0001589,2]
[333744187,1722436267078,-500.0,0.0001589,2]
[333744188,1722436267088,-500.0,0.0001589,2]
[333744189,1722436267098,-2141.31,0.0001589,2]
[333744190,1722436267107,-611.28,0.0001589,2]
[333744191,1722436267117,-1447.41,0.0001589,2]
[333744192,1722436267127,-500.0,0.0001589,2]
[333744193,1722436267251,-500.0,0.0001589,2]
[333744194,1722436267264,-618.14,0.0001589,2]
[333744195,1722436267274,-500.0,0.0001589,2]
[333744196,1722436267283,-500.0,0.0001589,2]
[333744197,1722436267293,-1435.27,0.0001589,2]
[333744198,1722436267302,-803.86,0.0001589,2]
[333744199,1722436267311,-500.0,0.0001589,2]
[333744200,1722436267321,-11813.21,0.0001589,2]
[333744201,1722436267331,-1061.19,0.0001589,2]
[333744202,1722436267340,-500.0,0.0001589,2]
[333744203,1722436267350,-846.32,0.0001589,2]
[333744204,1722436267359,-1329.77,0.0001589,2]
[333744205,1722436267369,-500.0,0.0001589,2]
[333744206,1722436267379,-1959.37,0.0001589,2]
[333744207,1722436267389,-1096.77,0.0001589,2]
[333744208,1722436267398,-2234.55,0.0001589,2]
[333744209,1722436267408,-500.0,0.0001589,2]
[333744210,1722436267418,-781.62,0.0001589,2]
[333744211,1722436267428,-1859.11,0.0001589,2]
[333744212,1722436267438,-1887.88,0.0001589,2]
[333744213,1722436267448,-546.72,0.0001589,2]
[333744214,1722436267457,-500.0,0.0001589,2]
[333744215,1722436267467,-500.0,0.0001589,2]
[333744216,1722436267476,-1037.88,0.0001589,2]
[333744217,1722436267486,-6350.45,0.0001589,2]
[333744218,1722436267495,-500.0,0.0001589,2]
[333744219,1722436267505,-2915.69,0.0001589,2]
[333744220,1722436267518,-1339.68,0.0001589,2]
[333744221,1722436267528,-3777.9,0.0001589,2]
[333744222,1722436267537,-599.7,0.0001589,2]
[333744223,1722436267547,-1280.32,0.0001589,2]
[333744224,1722436267555,-1357.06,0.0001589,2]
[333744225,1722436267565,-708.71,0.0001589,2]
[333744226,1722436267574,-737.52,0.0001589,2]
[333744227,1722436267583,-1109.13,0.0001589,2]
[333744228,1722436267593,-1695.04,0.0001589,2]
[333744229,1722436267602,-1515.2,0.0001589,2]
[333744230,1722436267612,-557.54,0.0001589,2]
[333744231,1722436267621,-848.0,0.0001589,2]
[333744232,1722436267630,-798.49,0.0001589,2]
[333744233,1722436267640,-500.0,0.0001589,2]
[333744234,1722436267649,-1679.98,0.0001589,2]
[333744235,1722436267659,-633.19,0.0001589,2]
[333744236,1722436267668,-1590.02,0.0001589,2]
[333744237,1722436267678,-500.0,0.0001589,2]
[333744238,1722436267687,-610.27,0.0001589,2]
[333744239,1722436267697,-961.5,0.0001589,2]
[333744240,1722436267706,-550.74,0.0001589,2]
[333744241,1722436267715,-1625.27,0.0001589,2]
[333744242,1722436267724,-621.9,0.0001589,2]
[333744243,1722436267734,-2044.97,0.0001589,2]
[333744244,1722436267743,-950.0,0.0001589,2]
[333744245,1722436267753,-704.75,0.0001589,2]
[333744246,1722436267766,-944.75,0.0001589,2]
[333744247,1722436267780,-534.79,0.0001589,2]
[333744248,1722436267789,-1474.64,0.0001589,2]
[333744249,1722436267799,-183.88346565,0.0001589,2]
[333744250,1722436267808,-3337.57,0.0001589,2]
[333744251,1722436267818,-500.0,0.0001589,2]
[333744252,1722436267827,-1441.6,0.0001589,2]
[333744253,1722436267837,-613.94,0.0001589,2]
[333744254,1722436267846,-3785.8,0.0001589,2]
[333744255,1722436267856,-2217.81,0.0001589,2]
[333744256,1722436267865,-1805.67,0.0001589,2]
[333744257,1722436267874,-692.38,0.0001589,2]
[333744258,1722436267885,-8958.39,0.0001589,2]
[333744259,1722436267894,-1032.38,0.0001589,2]
[333744260,1722436267903,-504.19481892,0.0001589,2]
[333744261,1722436267913,-586.45,0.0001589,2]
[333744262,1722436267923,-1316.61,0.0001589,2]
[333744263,1722436267933,-670.42,0.0001589,2]
[333744264,1722436267943,-9981.93,0.0001589,2]
[333744265,1722436267953,-606.52,0.0001589,2]
[333744266,1722436267963,-1701.64,0.0001589,2]
[333744267,1722436267973,-3426.69,0.0001589,2]
[333744268,1722436267982,-522.96,0.0001589,2]
[333744269,1722436267992,-500.0,0.0001589,2]
[333744270,1722436268001,-1207.01,0.0001589,2]
[333744271,1722436268013,-500.0,0.0001589,2]
[333744272,1722436268022,-170.10465463,0.00015946,2]
[333744273,1722436268032,-890.04294861,0.00015952,2]
[333744274,1722436268042,-151.0,0.00015969,2]
[333744275,1722436268051,-4000.0,0.00016,2]
[333744276,1722436268061,-4000.0,0.00016,2]
[333744277,1722436268070,-4000.0,0.00016,2]
[333744278,1722436268079,-2020.71904051,0.00016,2]
[333744279,1722436268089,-3000.0,0.00016,2]
[333744280,1722436268098,-1000.0,0.00016,2]
[333744281,1722436268108,-3000.0,0.0001601,2]
[333744282,1722436268117,-3000.0,0.0001602,2]
[333744283,1722436268126,-3000.0,0.0001603,2]
[333744284,1722436268135,-569.87744486,0.00016038,2]
[333744285,1722436268145,-3000.0,0.0001604,2]
[333744286,1722436268154,-3000.0,0.0001605,2]
[333744287,1722436268163,-3000.0,0.0001606,2]
[333744288,1722436268171,-3000.0,0.0001607,2]
[333744289,1722436268181,-3000.0,0.0001608,2]
[333744290,1722436268190,-3000.0,0.0001609,2]
[333744291,1722436268199,-3000.0,0.000161,2]
[333744292,1722436268208,-3000.0,0.0001611,2]
[333744293,1722436268217,-3000.0,0.0001612,2]
[333744294,1722436268227,-3000.0,0.0001613,2]
[333744295,1722436268235,-3000.0,0.0001614,2]
[333744296,1722436268245,-3000.0,0.0001615,2]
[333744297,1722436268255,-3000.0,0.0001616,2]
[333744298,1722436268267,-500.0,0.00016164,2]
[333744299,1722436268276,-500.0,0.00016164,2]
[333744300,1722436268285,-500.0,0.00016164,2]
[333744301,1722436268297,-1203.12,0.00016164,2]
[333744302,1722436268306,-663.55,0.00016164,2]
[333744303,1722436268317,-673.52,0.00016164,2]
[333744304,1722436268326,-593.98,0.00016164,2]
[333744305,1722436268335,-500.0,0.00016164,2]
[333744306,1722436268344,-941.76,0.00016164,2]
[333744307,1722436268354,-500.0,0.00016164,2]
[333744308,1722436268363,-500.0,0.00016164,2]
[333744309,1722436268373,-804.7,0.00016164,2]
[333744310,1722436268383,-607.37,0.00016164,2]
[333744311,1722436268393,-948.79,0.00016164,2]
[333744312,1722436268402,-976.01,0.00016164,2]
[333744313,1722436268412,-562.63,0.00016164,2]
[333744314,1722436268422,-500.0,0.00016164,2]
[333744315,1722436268431,-500.0,0.00016164,2]
[333744316,1722436268441,-1571.13,0.00016164,2]
[333744317,1722436268450,-500.0,0.00016164,2]
[333744318,1722436268460,-500.0,0.00016164,2]
[333744319,1722436268469,-1328.76,0.00016164,2]
[333744320,1722436268479,-500.0,0.00016164,2]
[333744321,1722436268490,-639.28,0.00016164,2]
[333744322,1722436268500,-500.0,0.00016164,2]
[333744323,1722436268512,-685.75,0.00016164,2]
[333744324,1722436268522,-941.24,0.00016164,2]
[333744325,1722436268530,-1053.96,0.00016164,2]
[333744326,1722436268540,-1605.03,0.00016164,2]
[333744327,1722436268549,-500.0,0.00016164,2]
[333744328,1722436268559,-504.87347054,0.00016164,2]
[333744329,1722436268569,-784.05,0.00016164,2]
[333744330,1722436268578,-500.0,0.00016164,2]
[333744331,1722436268587,-922.81,0.00016164,2]
[333744332,1722436268597,-848.32,0.00016164,2]
[333744333,1722436268606,-507.82,0.00016164,2]
[333744334,1722436268616,-500.0,0.00016164,2]
[333744335,1722436268627,-500.0,0.00016164,2]
[333744336,1722436268638,-2262.96,0.00016164,2]
[333744337,1722436268647,-1114.64,0.00016164,2]
[333744338,1722436268657,-694.84,0.00016164,2]
[333744339,1722436268667,-500.0,0.00016164,2]
[333744340,1722436268677,-500.0,0.00016164,2]
[333744341,1722436268687,-500.0,0.00016164,2]
[333744342,1722436268696,-594.71492574,0.00016164,2]
[333744343,1722436268705,-500.0,0.00016164,2]
[333744344,1722436268715,-2141.31,0.00016164,2]
[333744345,1722436268724,-611.28,0.00016164,2]
[333744346,1722436268733,-1447.41,0.00016164,2]
[333744347,1722436268743,-500.0,0.00016164,2]
[333744348,1722436268752,-385.19439014,0.00016164,2]
[333744349,1722436268763,-618.14,0.00016164,2]
[333744350,1722436268773,-500.0,0.00016164,2]
[333744351,1722436268782,-500.0,0.00016164,2]
[333744352,1722436268793,-1435.27,0.00016164,2]
[333744353,1722436268802,-803.86,0.00016164,2]
[333744354,1722436268811,-500.0,0.00016164,2]
[333744355,1722436268821,-11813.21,0.00016164,2]
[333744356,1722436268830,-1061.19,0.00016164,2]
[333744357,1722436268840,-500.0,0.00016164,2]
[333744358,1722436268849,-846.32,0.00016164,2]
[333744359,1722436268859,-1329.77,0.00016164,2]
[333744360,1722436268869,-588.25117155,0.00016164,2]
[333744361,1722436268879,-1959.37,0.00016164,2]
[333744362,1722436268889,-1096.77,0.00016164,2]
[333744363,1722436268898,-2234.55,0.00016164,2]
[333744364,1722436268908,-500.0,0.00016164,2]
[333744365,1722436268918,-781.62,0.00016164,2]
[333744366,1722436268928,-1859.11,0.00016164,2]
[333744367,1722436268937,-1887.88,0.00016164,2]
[333744368,1722436268947,-546.72,0.00016164,2]
[333744369,1722436268958,-500.0,0.00016164,2]
[333744370,1722436268968,-500.0,0.00016164,2]
[333744371,1722436268978,-1037.88,0.00016164,2]
[333744372,1722436268987,-6350.45,0.00016164,2]
[333744373,1722436268997,-293.64574018,0.00016164,2]
[333744374,1722436269007,-2915.69,0.00016164,2]
[333744375,1722436269018,-1339.68,0.00016164,2]
[333744376,1722436269028,-3777.9,0.00016164,2]
[333744377,1722436269037,-599.7,0.00016164,2]
[333744378,1722436269047,-1280.32,0.00016164,2]
[333744379,1722436269056,-1357.06,0.00016164,2]
[333744380,1722436269065,-708.71,0.00016164,2]
[333744381,1722436269075,-737.52,0.00016164,2]
[333744382,1722436269084,-1109.13,0.00016164,2]
[333744383,1722436269093,-1695.04,0.00016164,2]
[333744384,1722436269102,-1515.2,0.00016164,2]
[333744385,1722436269111,-557.54,0.00016164,2]
[333744386,1722436269121,-848.0,0.00016164,2]
[333744387,1722436269130,-798.49,0.00016164,2]
[333744388,1722436269139,-500.0,0.00016164,2]
[333744389,1722436269149,-1679.98,0.00016164,2]
[333744390,1722436269158,-633.19,0.00016164,2]
[333744391,1722436269168,-1590.02,0.00016164,2]
[333744392,1722436269177,-500.0,0.00016164,2]
[333744393,1722436269186,-610.27,0.00016164,2]
[333744394,1722436269195,-961.5,0.00016164,2]
[333744395,1722436269205,-550.74,0.00016164,2]
[333744396,1722436269214,-1625.27,0.00016164,2]
[333744397,1722436269223,-621.9,0.00016164,2]
[333744398,1722436269233,-2044.97,0.00016164,2]
[333744399,1722436269242,-950.0,0.00016164,2]
[333744400,1722436269252,-704.75,0.00016164,2]
[333744401,1722436269264,-944.75,0.00016164,2]
[333744402,1722436269274,-534.79,0.00016164,2]
[333744403,1722436269284,-1474.64,0.00016164,2]
[333744404,1722436269294,-3337.57,0.00016164,2]
[333744405,1722436269304,-500.0,0.00016164,2]
[333744406,1722436269314,-613.94,0.00016164,2]
[333744407,1722436269323,-1441.6,0.00016164,2]
[333744408,1722436269333,-3785.8,0.00016164,2]
[333744409,1722436269342,-2217.81,0.00016164,2]
[333744410,1722436269352,-1805.67,0.00016164,2]
[333744411,1722436269361,-692.38,0.00016164,2]
[333744412,1722436269371,-8958.39,0.00016164,2]
[333744413,1722436269380,-1032.38,0.00016164,2]
[333744414,1722436269390,-586.45,0.00016164,2]
[333744415,1722436269399,-1316.61,0.00016164,2]
[333744416,1722436269409,-670.42,0.00016164,2]
[333744417,1722436269419,-9981.93,0.00016164,2]
[333744418,1722436269429,-606.52,0.00016164,2]
[333744419,1722436269439,-1701.64,0.00016164,2]
[333744420,1722436269449,-3426.69,0.00016164,2]
[333744421,1722436269459,-522.96,0.00016164,2]
[333744422,1722436269470,-500.0,0.00016164,2]
[333744423,1722436269479,-1207.01,0.00016164,2]
[333744424,1722436269488,-500.0,0.00016164,2]
[333744425,1722436269498,-3000.0,0.0001617,2]
[333744426,1722436269507,-3000.0,0.0001618,2]
[333744427,1722436269521,-3000.0,0.0001619,2]
[333744428,1722436269530,-3000.0,0.000162,2]
[333744429,1722436269539,-3000.0,0.0001621,2]
[333744430,1722436269549,-3000.0,0.0001622,2]
[333744431,1722436269558,-3000.0,0.0001623,2]
[333744432,1722436269568,-3000.0,0.0001624,2]
[333744433,1722436269578,-3000.0,0.0001625,2]
[333744434,1722436269587,-3000.0,0.0001626,2]
[333744435,1722436269596,-3000.0,0.0001627,2]
[333744436,1722436269605,-3000.0,0.0001628,2]
[333744437,1722436269615,-3000.0,0.0001629,2]
[333744438,1722436269624,-3000.0,0.000163,2]
[333744439,1722436269635,-3000.0,0.0001631,2]
[333744440,1722436269644,-3000.0,0.0001632,2]
[333744441,1722436269654,-3000.0,0.0001633,2]
[333744442,1722436269664,-3000.0,0.0001634,2]
[333744443,1722436269673,-3000.0,0.0001635,2]
[333744444,1722436269682,-3000.0,0.0001636,2]
[333744445,1722436269692,-3000.0,0.0001637,2]
[333744446,1722436269702,-3000.0,0.0001638,2]
[333744447,1722436269711,-3000.0,0.0001639,2]
[333744448,1722436269720,-3000.0,0.000164,2]
[333744449,1722436269730,-3000.0,0.0001641,2]
[333744450,1722436269740,-3000.0,0.0001642,2]
[333744451,1722436269749,-3000.0,0.0001643,2]
[333744452,1722436269758,-400.0,0.00016438,2]
[333744453,1722436269771,-500.0,0.00016438,2]
[333744454,1722436269784,-500.0,0.00016438,2]
[333744455,1722436269794,-1203.12,0.00016438,2]
[333744456,1722436269804,-663.55,0.00016438,2]
[333744457,1722436269813,-333.61,0.00016438,2]
[333744458,1722436269824,-333.61,0.00016438,2]
[333744459,1722436269833,-333.61,0.00016438,2]
[333744460,1722436269843,-333.61,0.00016438,2]
[333744461,1722436269852,-333.61,0.00016438,2]
[333744462,1722436269862,-333.61,0.00016438,2]
[333744463,1722436269872,-333.61,0.00016438,2]
[333744464,1722436269881,-333.61,0.00016438,2]
[333744465,1722436269891,-333.61,0.00016438,2]
[333744466,1722436269901,-333.61,0.00016438,2]
[333744467,1722436269910,-333.61,0.00016438,2]
[333744468,1722436269919,-673.52,0.00016438,2]
[333744469,1722436269929,-593.98,0.00016438,2]
[333744470,1722436269939,-500.0,0.00016438,2]
[333744471,1722436269949,-941.76,0.00016438,2]
[333744472,1722436269959,-500.0,0.00016438,2]
[333744473,1722436269969,-500.0,0.00016438,2]